[Event "Early-Titled-Tuesday-Blitz-October-24-2023"]
[Site "Chess.com"]
[Date "2023.10.24"]
[Round "2"]
[White "NovoselovRoman"]
[Black "RamonManon0g"]
[Result "1-0"]
[WhiteElo "2567"]
[BlackElo "2326"]
[TimeControl "180+1"]
[EndTime "8:17:00 PDT"]
[Termination "NovoselovRoman won by resignation"]

1. d4 {[%clk 0:03:00]} 1... Nf6 {[%clk 0:02:58.2]} 2. Nc3 {[%clk 0:02:59.7]}
2... d5 {[%clk 0:02:57.3]} 3. Bf4 {[%clk 0:02:57]} 3... e6 {[%clk 0:02:57.2]} 4.
e3 {[%clk 0:02:57]} 4... c5 {[%clk 0:02:56.3]} 5. Nf3 {[%clk 0:02:55.4]} 5...
cxd4 {[%clk 0:02:56.3]} 6. exd4 {[%clk 0:02:55.4]} 6... Bb4 {[%clk 0:02:56]} 7.
Bd3 {[%clk 0:02:54.4]} 7... O-O {[%clk 0:02:55.8]} 8. O-O {[%clk 0:02:54.2]}
8... Nc6 {[%clk 0:02:52.1]} 9. Ne2 {[%clk 0:02:54.1]} 9... Bd6 {[%clk
0:02:49.9]} 10. c3 {[%clk 0:02:52.4]} 10... Bxf4 {[%clk 0:02:48.1]} 11. Nxf4
{[%clk 0:02:52.4]} 11... Ne4 {[%clk 0:02:48.8]} 12. Re1 {[%clk 0:02:47.8]} 12...
f5 {[%clk 0:02:48.3]} 13. Rc1 {[%clk 0:02:44.1]} 13... g5 {[%clk 0:02:40.7]} 14.
Nh5 {[%clk 0:02:32.8]} 14... g4 {[%clk 0:02:34.3]} 15. Ne5 {[%clk 0:02:29.4]}
15... Nxf2 {[%clk 0:02:24.1]} 16. Kxf2 {[%clk 0:02:24.7]} 16... Qh4+ {[%clk
0:02:24.7]} 17. Ng3 {[%clk 0:02:24.5]} 17... f4 {[%clk 0:02:25.1]} 18. Qxg4+
{[%clk 0:02:20.5]} 18... Qxg4 {[%clk 0:02:23.8]} 19. Nxg4 {[%clk 0:02:21.4]}
19... fxg3+ {[%clk 0:02:22.1]} 20. Kxg3 {[%clk 0:02:22.3]} 20... Bd7 {[%clk
0:02:10.7]} 21. Rf1 {[%clk 0:02:21.3]} 21... Kg7 {[%clk 0:02:09.6]} 22. Bb5
{[%clk 0:01:55]} 22... Nxd4 {[%clk 0:01:17]} 23. Bxd7 {[%clk 0:01:22.2]} 23...
Ne2+ {[%clk 0:01:15.6]} 24. Kh3 {[%clk 0:01:22.4]} 24... Nxc1 {[%clk 0:01:16.5]}
25. Rxc1 {[%clk 0:01:22.8]} 25... Kf7 {[%clk 0:01:14.2]} 26. Re1 {[%clk
0:01:18.6]} 26... h5 {[%clk 0:00:57.3]} 27. Bxe6+ {[%clk 0:01:06.8]} 27... Kg7
{[%clk 0:00:57.4]} 28. Ne3 {[%clk 0:00:46.5]} 28... Rf2 {[%clk 0:00:50.8]} 29.
b4 {[%clk 0:00:38.3]} 29... Rxa2 {[%clk 0:00:38.7]} 30. Bxd5 {[%clk 0:00:38.4]}
30... Ra3 {[%clk 0:00:38.9]} 31. Rc1 {[%clk 0:00:30.8]} 31... Rc8 {[%clk
0:00:32.5]} 32. Nd1 {[%clk 0:00:23.1]} 32... b6 {[%clk 0:00:27.7]} 33. Bf3
{[%clk 0:00:23.4]} 33... Kg6 {[%clk 0:00:24.7]} 34. c4 {[%clk 0:00:23.1]} 34...
Rb3 {[%clk 0:00:21.9]} 35. c5 {[%clk 0:00:22.2]} 35... Rxb4 {[%clk 0:00:20.8]}
36. c6 {[%clk 0:00:22.3]} 36... a5 {[%clk 0:00:17.9]} 37. Ne3 {[%clk 0:00:20.9]}
37... a4 {[%clk 0:00:16.7]} 38. Nd5 {[%clk 0:00:21.3]} 38... Rb3 {[%clk
0:00:15.9]} 39. Ne7+ {[%clk 0:00:18.7]} 39... Kg5 {[%clk 0:00:16]} 40. Nxc8
{[%clk 0:00:19.6]} 40... a3 {[%clk 0:00:16.6]} 41. Nd6 {[%clk 0:00:19.5]} 41...
a2 {[%clk 0:00:16.8]} 42. Ra1 {[%clk 0:00:19.4]} 42... Rb2 {[%clk 0:00:14.9]}
43. c7 {[%clk 0:00:19.1]} 43... Rc2 {[%clk 0:00:15.8]} 44. c8=Q {[%clk
0:00:18.4]} 44... Rxc8 {[%clk 0:00:15.6]} 45. Nxc8 {[%clk 0:00:19.3]} 1-0

[Event "Early-Titled-Tuesday-Blitz-October-24-2023"]
[Site "Chess.com"]
[Date "2023.10.24"]
[Round "2"]
[White "m_ezat"]
[Black "Grischuk"]
[Result "0-1"]
[WhiteElo "2610"]
[BlackElo "2985"]
[TimeControl "180+1"]
[EndTime "8:17:02 PDT"]
[Termination "Grischuk won by checkmate"]

1. d4 {[%clk 0:03:00.9]} 1... e6 {[%clk 0:02:59.9]} 2. c4 {[%clk 0:03:00.9]}
2... b6 {[%clk 0:02:59.9]} 3. e4 {[%clk 0:02:59.9]} 3... Bb4+ {[%clk 0:02:59.4]}
4. Bd2 {[%clk 0:02:58.4]} 4... Bxd2+ {[%clk 0:02:59.2]} 5. Qxd2 {[%clk
0:02:57.5]} 5... d5 {[%clk 0:02:58.9]} 6. Nc3 {[%clk 0:02:54.4]} 6... dxe4
{[%clk 0:02:57]} 7. Nxe4 {[%clk 0:02:54.4]} 7... Bb7 {[%clk 0:02:56.6]} 8. Ng3
{[%clk 0:02:54]} 8... Nf6 {[%clk 0:02:50.6]} 9. Qc3 {[%clk 0:02:51.9]} 9... O-O
{[%clk 0:02:46.3]} 10. Nf3 {[%clk 0:02:50.1]} 10... c5 {[%clk 0:02:03.1]} 11.
O-O-O {[%clk 0:02:45.5]} 11... Qc7 {[%clk 0:01:58.8]} 12. Bd3 {[%clk 0:02:28.6]}
12... Bxf3 {[%clk 0:01:47.3]} 13. gxf3 {[%clk 0:02:27.7]} 13... Qf4+ {[%clk
0:01:37.9]} 14. Kb1 {[%clk 0:02:25]} 14... cxd4 {[%clk 0:01:37.2]} 15. Qc2
{[%clk 0:02:14.7]} 15... Nc6 {[%clk 0:01:34.5]} 16. a3 {[%clk 0:02:14.9]} 16...
Rfd8 {[%clk 0:01:26.7]} 17. Rhg1 {[%clk 0:02:12.4]} 17... Rac8 {[%clk
0:01:24.5]} 18. Ne4 {[%clk 0:01:46.7]} 18... g6 {[%clk 0:01:21.2]} 19. Ng5
{[%clk 0:01:39.2]} 19... Ne5 {[%clk 0:01:19.5]} 20. Rg3 {[%clk 0:01:15.2]} 20...
Kg7 {[%clk 0:00:44.5]} 21. Rdg1 {[%clk 0:01:10]} 21... Rd6 {[%clk 0:00:42.9]}
22. h4 {[%clk 0:01:08.7]} 22... Rc7 {[%clk 0:00:36.3]} 23. Ne4 {[%clk
0:00:55.3]} 23... Nxe4 {[%clk 0:00:35.2]} 24. fxe4 {[%clk 0:00:52.4]} 24... h6
{[%clk 0:00:30.1]} 25. Ka1 {[%clk 0:00:48.2]} 25... Rdc6 {[%clk 0:00:29.5]} 26.
h5 {[%clk 0:00:27.5]} 26... g5 {[%clk 0:00:29.4]} 27. Qe2 {[%clk 0:00:26.2]}
27... Nxd3 {[%clk 0:00:28.2]} 28. Qxd3 {[%clk 0:00:26.5]} 28... Rxc4 {[%clk
0:00:28.9]} 29. Rf3 {[%clk 0:00:27]} 29... Qe5 {[%clk 0:00:27.2]} 30. Ka2 {[%clk
0:00:24.3]} 30... b5 {[%clk 0:00:25.6]} 31. Rfg3 {[%clk 0:00:21.4]} 31... a5
{[%clk 0:00:22.8]} 32. Rg4 {[%clk 0:00:18.2]} 32... Kf8 {[%clk 0:00:16.9]} 33.
f4 {[%clk 0:00:18.2]} 33... gxf4 {[%clk 0:00:17.8]} 34. Rf1 {[%clk 0:00:17.6]}
34... b4 {[%clk 0:00:15.4]} 35. Rgxf4 {[%clk 0:00:17.6]} 35... R4c6 {[%clk
0:00:09.6]} 36. a4 {[%clk 0:00:15.9]} 36... Qc5 {[%clk 0:00:09.1]} 37. Qd2
{[%clk 0:00:14.8]} 37... Qc4+ {[%clk 0:00:09.3]} 38. Ka1 {[%clk 0:00:15]} 38...
b3 {[%clk 0:00:07.6]} 39. Rb1 {[%clk 0:00:10.6]} 39... Qxa4# {[%clk 0:00:07.1]}
0-1

[Event "Early-Titled-Tuesday-Blitz-October-24-2023"]
[Site "Chess.com"]
[Date "2023.10.24"]
[Round "2"]
[White "BardArtem"]
[Black "Cristi_Coca"]
[Result "1-0"]
[WhiteElo "2702"]
[BlackElo "2403"]
[TimeControl "180+1"]
[EndTime "8:17:02 PDT"]
[Termination "BardArtem won by resignation"]

1. e4 {[%clk 0:03:00.9]} 1... c5 {[%clk 0:02:59.8]} 2. c3 {[%clk 0:02:57.6]}
2... d5 {[%clk 0:02:59.6]} 3. exd5 {[%clk 0:02:58.5]} 3... Qxd5 {[%clk
0:02:59.3]} 4. d4 {[%clk 0:02:58.5]} 4... Nf6 {[%clk 0:02:58.6]} 5. Nf3 {[%clk
0:02:58.2]} 5... Nc6 {[%clk 0:02:58.1]} 6. Be3 {[%clk 0:02:52.6]} 6... Bg4
{[%clk 0:02:57]} 7. Be2 {[%clk 0:02:34.5]} 7... cxd4 {[%clk 0:02:44.2]} 8. cxd4
{[%clk 0:02:33.9]} 8... e6 {[%clk 0:02:44.4]} 9. Nc3 {[%clk 0:02:33.5]} 9... Bb4
{[%clk 0:02:43.8]} 10. O-O {[%clk 0:02:22.1]} 10... Bxc3 {[%clk 0:02:43.2]} 11.
bxc3 {[%clk 0:02:23]} 11... O-O {[%clk 0:02:42.7]} 12. Rb1 {[%clk 0:02:19.5]}
12... b6 {[%clk 0:02:40.5]} 13. c4 {[%clk 0:02:18.5]} 13... Qd6 {[%clk
0:02:34.4]} 14. c5 {[%clk 0:01:49.1]} 14... bxc5 {[%clk 0:02:33.2]} 15. dxc5
{[%clk 0:01:50]} 15... Qxd1 {[%clk 0:02:32.7]} 16. Rfxd1 {[%clk 0:01:50.9]}
16... Nd5 {[%clk 0:02:32.5]} 17. Bg5 {[%clk 0:01:32.4]} 17... Nc3 {[%clk
0:02:28.9]} 18. Bb5 {[%clk 0:01:23.1]} 18... Bxf3 {[%clk 0:02:20.3]} 19. gxf3
{[%clk 0:01:22.7]} 19... Nxd1 {[%clk 0:02:07.4]} 20. Bxc6 {[%clk 0:01:22.2]}
20... Rac8 {[%clk 0:02:07.3]} 21. Bb7 {[%clk 0:00:40.2]} 21... Nc3 {[%clk
0:01:59.8]} 22. Bxc8 {[%clk 0:00:38.7]} 22... Rxc8 {[%clk 0:01:47.4]} 23. Rb7
{[%clk 0:00:33.2]} 23... f6 {[%clk 0:01:43.3]} 24. Be3 {[%clk 0:00:24.3]} 24...
Nxa2 {[%clk 0:01:34.3]} 25. Rxa7 {[%clk 0:00:24.8]} 25... Nb4 {[%clk 0:01:33.6]}
26. Kf1 {[%clk 0:00:22.8]} 26... Nd5 {[%clk 0:01:29.3]} 27. Ra5 {[%clk 0:00:22]}
27... Kf7 {[%clk 0:01:20.6]} 28. Ke2 {[%clk 0:00:20.9]} 28... Ke7 {[%clk
0:01:17.4]} 29. Kd3 {[%clk 0:00:20.2]} 29... Kd7 {[%clk 0:01:16.7]} 30. Kc4
{[%clk 0:00:15.9]} 30... Rb8 {[%clk 0:01:05.3]} 31. Ra7+ {[%clk 0:00:14.3]}
31... Nc7 {[%clk 0:01:05.1]} 32. Bd2 {[%clk 0:00:10.9]} 32... Kc6 {[%clk
0:00:38.1]} 33. Ba5 {[%clk 0:00:09.1]} 33... Nd5 {[%clk 0:00:32.1]} 34. Ra6+
{[%clk 0:00:04.6]} 34... Kd7 {[%clk 0:00:30.1]} 35. c6+ {[%clk 0:00:05.1]} 35...
Kc8 {[%clk 0:00:25.8]} 36. Ra7 {[%clk 0:00:03.9]} 36... Rb1 {[%clk 0:00:21.4]}
37. Rxg7 {[%clk 0:00:03.8]} 37... Rc1+ {[%clk 0:00:20.6]} 38. Kb5 {[%clk
0:00:03.5]} 38... Rb1+ {[%clk 0:00:17.5]} 39. Kc5 {[%clk 0:00:03.8]} 1-0

[Event "Early-Titled-Tuesday-Blitz-October-24-2023"]
[Site "Chess.com"]
[Date "2023.10.24"]
[Round "2"]
[White "cthulhuuu"]
[Black "Zavgorodniy_Sergiy"]
[Result "1-0"]
[WhiteElo "2394"]
[BlackElo "2689"]
[TimeControl "180+1"]
[EndTime "8:17:03 PDT"]
[Termination "cthulhuuu won by resignation"]

1. e4 {[%clk 0:02:59.9]} 1... c6 {[%clk 0:02:59.7]} 2. d3 {[%clk 0:02:59.4]}
2... d5 {[%clk 0:02:59.2]} 3. Nd2 {[%clk 0:03:00.1]} 3... e5 {[%clk 0:02:58]} 4.
Ngf3 {[%clk 0:03:00.7]} 4... Bd6 {[%clk 0:02:57.7]} 5. d4 {[%clk 0:03:00.8]}
5... exd4 {[%clk 0:02:56.4]} 6. exd5 {[%clk 0:03:00.7]} 6... Nf6 {[%clk
0:02:55.5]} 7. dxc6 {[%clk 0:03:00.9]} 7... Nxc6 {[%clk 0:02:54.7]} 8. Nb3
{[%clk 0:03:01.6]} 8... O-O {[%clk 0:02:49]} 9. Be2 {[%clk 0:03:02]} 9... Re8
{[%clk 0:02:44.5]} 10. O-O {[%clk 0:03:02.1]} 10... Bg4 {[%clk 0:02:38.4]} 11.
h3 {[%clk 0:03:01.7]} 11... Bh5 {[%clk 0:02:37.9]} 12. Nfxd4 {[%clk 0:01:45.9]}
12... Bxe2 {[%clk 0:02:01.6]} 13. Nxe2 {[%clk 0:01:46.8]} 13... Qe7 {[%clk
0:01:57.9]} 14. Ned4 {[%clk 0:01:33.6]} 14... Nxd4 {[%clk 0:01:55.6]} 15. Nxd4
{[%clk 0:01:34.5]} 15... Rad8 {[%clk 0:01:53.9]} 16. c3 {[%clk 0:01:32.3]} 16...
Qe5 {[%clk 0:01:52]} 17. Nf3 {[%clk 0:01:30.7]} 17... Qh5 {[%clk 0:01:47]} 18.
Nd4 {[%clk 0:01:29.1]} 18... Qg6 {[%clk 0:01:43.5]} 19. Qf3 {[%clk 0:01:26.6]}
19... Ne4 {[%clk 0:01:38]} 20. Bf4 {[%clk 0:01:20.9]} 20... Bxf4 {[%clk
0:01:34.7]} 21. Qxf4 {[%clk 0:01:21.8]} 21... Nc5 {[%clk 0:01:32]} 22. Rfe1
{[%clk 0:01:08.3]} 22... Nd3 {[%clk 0:01:23.6]} 23. Rxe8+ {[%clk 0:01:06.2]}
23... Rxe8 {[%clk 0:01:24.5]} 24. Qd2 {[%clk 0:00:59.5]} 24... h6 {[%clk
0:01:16.7]} 25. Rd1 {[%clk 0:00:58.5]} 25... Nc5 {[%clk 0:01:14]} 26. Re1 {[%clk
0:00:57]} 26... Rxe1+ {[%clk 0:01:06.5]} 27. Qxe1 {[%clk 0:00:57.9]} 27... Nd3
{[%clk 0:01:03]} 28. Qe2 {[%clk 0:00:54.9]} 28... Nf4 {[%clk 0:01:00.3]} 29. Qf3
{[%clk 0:00:51.5]} 29... Qb1+ {[%clk 0:00:56.3]} 30. Kh2 {[%clk 0:00:51.2]}
30... g5 {[%clk 0:00:52.6]} 31. Qxb7 {[%clk 0:00:43.3]} 31... Qxa2 {[%clk
0:00:51.5]} 32. Nf5 {[%clk 0:00:40.6]} 32... Qe6 {[%clk 0:00:50.9]} 33. g4
{[%clk 0:00:40.7]} 33... Qe5 {[%clk 0:00:47.2]} 34. Nxh6+ {[%clk 0:00:31.5]}
34... Kh7 {[%clk 0:00:45.6]} 35. Nxf7 {[%clk 0:00:31.1]} 35... Qe2 {[%clk
0:00:39.1]} 36. Nd6+ {[%clk 0:00:18.9]} 36... Kg8 {[%clk 0:00:35.7]} 37. Qf7+
{[%clk 0:00:18.4]} 37... Kh8 {[%clk 0:00:36.1]} 38. Qf8+ {[%clk 0:00:18.2]}
38... Kh7 {[%clk 0:00:36.6]} 39. Qf7+ {[%clk 0:00:17.1]} 39... Kh8 {[%clk
0:00:36.9]} 40. Qf6+ {[%clk 0:00:16.7]} 40... Kh7 {[%clk 0:00:36.5]} 41. Qf5+
{[%clk 0:00:13.7]} 41... Kh8 {[%clk 0:00:36.1]} 42. Ne4 {[%clk 0:00:13.2]} 42...
Qf3 {[%clk 0:00:30.8]} 43. Qf8+ {[%clk 0:00:12.2]} 43... Kh7 {[%clk 0:00:30.7]}
44. Nxg5+ {[%clk 0:00:10.4]} 44... Kg6 {[%clk 0:00:31.2]} 45. Nxf3 {[%clk
0:00:10.9]} 1-0

[Event "Early-Titled-Tuesday-Blitz-October-24-2023"]
[Site "Chess.com"]
[Date "2023.10.24"]
[Round "2"]
[White "wonderfultime"]
[Black "GeorgiosSouleidis"]
[Result "1-0"]
[WhiteElo "2999"]
[BlackElo "2613"]
[TimeControl "180+1"]
[EndTime "8:17:04 PDT"]
[Termination "wonderfultime won on time"]

1. d4 {[%clk 0:03:00.9]} 1... Nf6 {[%clk 0:02:52.6]} 2. c4 {[%clk 0:03:01.1]}
2... g6 {[%clk 0:02:53]} 3. g3 {[%clk 0:03:00.7]} 3... Bg7 {[%clk 0:02:49.5]} 4.
Bg2 {[%clk 0:03:01.3]} 4... O-O {[%clk 0:02:49.8]} 5. Nf3 {[%clk 0:03:01.4]}
5... d6 {[%clk 0:02:50.3]} 6. O-O {[%clk 0:03:01.7]} 6... Nc6 {[%clk 0:02:50.6]}
7. d5 {[%clk 0:02:50.4]} 7... Na5 {[%clk 0:02:46.6]} 8. Na3 {[%clk 0:02:50.9]}
8... c5 {[%clk 0:02:45]} 9. Re1 {[%clk 0:02:47.2]} 9... a6 {[%clk 0:02:40.6]}
10. e4 {[%clk 0:02:44.2]} 10... Nd7 {[%clk 0:02:39.2]} 11. Rb1 {[%clk
0:02:39.8]} 11... b5 {[%clk 0:02:24.6]} 12. b3 {[%clk 0:02:39.7]} 12... Rb8
{[%clk 0:02:03.4]} 13. Bd2 {[%clk 0:02:36.3]} 13... Ne5 {[%clk 0:01:51.1]} 14.
Nxe5 {[%clk 0:02:15.4]} 14... Bxe5 {[%clk 0:01:52]} 15. Qe2 {[%clk 0:02:16.1]}
15... Bd7 {[%clk 0:01:44.7]} 16. f4 {[%clk 0:02:04.7]} 16... Bg7 {[%clk
0:01:40.9]} 17. Bf1 {[%clk 0:02:02]} 17... Re8 {[%clk 0:01:35.3]} 18. Qf3 {[%clk
0:01:55.3]} 18... Qc7 {[%clk 0:01:14.3]} 19. Bd3 {[%clk 0:01:47.9]} 19... e6
{[%clk 0:00:51.7]} 20. Nc2 {[%clk 0:01:33.8]} 20... exd5 {[%clk 0:00:45.3]} 21.
exd5 {[%clk 0:01:34.7]} 21... bxc4 {[%clk 0:00:32]} 22. bxc4 {[%clk 0:01:35.6]}
22... Rxb1 {[%clk 0:00:31.2]} 23. Rxb1 {[%clk 0:01:35.8]} 23... f5 {[%clk
0:00:21.2]} 24. Qf1 {[%clk 0:01:27.5]} 24... Ba4 {[%clk 0:00:20]} 25. Re1 {[%clk
0:01:22.4]} 25... Rxe1 {[%clk 0:00:17.2]} 26. Qxe1 {[%clk 0:01:23.3]} 26... Nb7
{[%clk 0:00:16.9]} 27. Kg2 {[%clk 0:01:16.2]} 27... Nd8 {[%clk 0:00:14.8]} 28.
Ba5 {[%clk 0:01:09.6]} 28... Qd7 {[%clk 0:00:12.8]} 29. Qe2 {[%clk 0:01:05.8]}
29... Kf8 {[%clk 0:00:10]} 30. Ne1 {[%clk 0:01:05.7]} 30... Qe7 {[%clk
0:00:06.1]} 31. Qf1 {[%clk 0:00:56.3]} 31... Be8 {[%clk 0:00:05.4]} 32. Nf3
{[%clk 0:00:56]} 32... h6 {[%clk 0:00:03.9]} 33. Qc1 {[%clk 0:00:45.2]} 33...
Bf6 {[%clk 0:00:03.7]} 34. Bd2 {[%clk 0:00:44.6]} 34... Nf7 {[%clk 0:00:03.9]}
35. Qa3 {[%clk 0:00:44.5]} 35... Qb7 {[%clk 0:00:03.5]} 36. h3 {[%clk
0:00:44.9]} 36... Bd7 {[%clk 0:00:03.9]} 37. Bc3 {[%clk 0:00:42.3]} 37... Bxc3
{[%clk 0:00:02.3]} 38. Qxc3 {[%clk 0:00:43.2]} 38... Kg8 {[%clk 0:00:02.4]} 39.
Qf6 {[%clk 0:00:43.3]} 39... Nh8 {[%clk 0:00:02.9]} 40. Kf2 {[%clk 0:00:31.7]}
40... Qc7 {[%clk 0:00:01.9]} 41. Nh4 {[%clk 0:00:30.5]} 41... Be8 {[%clk
0:00:02.3]} 42. g4 {[%clk 0:00:29.3]} 42... fxg4 {[%clk 0:00:02.4]} 43. hxg4
{[%clk 0:00:29.2]} 43... Qf7 {[%clk 0:00:02.6]} 44. Qxd6 {[%clk 0:00:29]} 44...
g5 {[%clk 0:00:02.2]} 45. Nf5 {[%clk 0:00:29.5]} 1-0

[Event "Early-Titled-Tuesday-Blitz-October-24-2023"]
[Site "Chess.com"]
[Date "2023.10.24"]
[Round "2"]
[White "ukchessbomber"]
[Black "knightinshiningarmour16"]
[Result "1-0"]
[WhiteElo "2650"]
[BlackElo "2148"]
[TimeControl "180+1"]
[EndTime "8:17:04 PDT"]
[Termination "ukchessbomber won by checkmate"]

1. h3 {[%clk 0:03:00.9]} 1... d5 {[%clk 0:02:58.7]} 2. g3 {[%clk 0:02:56.5]}
2... Bf5 {[%clk 0:02:56.7]} 3. Bg2 {[%clk 0:02:57.2]} 3... e6 {[%clk 0:02:56.6]}
4. d3 {[%clk 0:02:56.3]} 4... c6 {[%clk 0:02:56.6]} 5. Nd2 {[%clk 0:02:54.1]}
5... Nf6 {[%clk 0:02:52.9]} 6. e4 {[%clk 0:02:52.6]} 6... Bg6 {[%clk 0:02:52]}
7. Ne2 {[%clk 0:02:49.3]} 7... h6 {[%clk 0:02:51.4]} 8. O-O {[%clk 0:02:47.8]}
8... Nbd7 {[%clk 0:02:50.4]} 9. b3 {[%clk 0:02:37.4]} 9... Be7 {[%clk
0:02:49.8]} 10. Bb2 {[%clk 0:02:37.5]} 10... O-O {[%clk 0:02:49.7]} 11. a3
{[%clk 0:02:36.4]} 11... Nc5 {[%clk 0:02:45.1]} 12. b4 {[%clk 0:02:30.5]} 12...
Ncd7 {[%clk 0:02:42.9]} 13. c4 {[%clk 0:02:24.8]} 13... dxe4 {[%clk 0:02:39.3]}
14. Nxe4 {[%clk 0:02:22.3]} 14... Nxe4 {[%clk 0:02:39]} 15. dxe4 {[%clk
0:02:23.2]} 15... Nf6 {[%clk 0:02:37.8]} 16. Qc2 {[%clk 0:02:21.9]} 16... a5
{[%clk 0:02:35.5]} 17. Bc3 {[%clk 0:02:21.5]} 17... axb4 {[%clk 0:02:35]} 18.
axb4 {[%clk 0:02:22.4]} 18... Qb6 {[%clk 0:02:34.4]} 19. Qb2 {[%clk 0:02:12.3]}
19... Qc7 {[%clk 0:02:32.8]} 20. Be5 {[%clk 0:02:10.6]} 20... Qb6 {[%clk
0:02:29.5]} 21. Bc3 {[%clk 0:02:10.3]} 21... Rfd8 {[%clk 0:02:15.5]} 22. Nf4
{[%clk 0:02:05.9]} 22... Bh7 {[%clk 0:02:14.7]} 23. Rxa8 {[%clk 0:01:38.5]}
23... Rxa8 {[%clk 0:02:13.6]} 24. Ra1 {[%clk 0:01:39.4]} 24... Rxa1+ {[%clk
0:02:10]} 25. Qxa1 {[%clk 0:01:39]} 25... Qc7 {[%clk 0:02:01.4]} 26. Qa8+ {[%clk
0:01:35.5]} 26... Qd8 {[%clk 0:01:21.3]} 27. Qxb7 {[%clk 0:01:32.5]} 27... Nxe4
{[%clk 0:01:12.8]} 28. Be5 {[%clk 0:01:07.7]} 28... Qd1+ {[%clk 0:01:06.1]} 29.
Kh2 {[%clk 0:01:03.3]} 29... Nxf2 {[%clk 0:00:57.9]} 30. Qxe7 {[%clk 0:00:29.9]}
30... Be4 {[%clk 0:00:50.5]} 31. Nxe6 {[%clk 0:00:30.2]} 31... Ng4+ {[%clk
0:00:11.3]} 32. hxg4 {[%clk 0:00:28.6]} 32... Qxg4 {[%clk 0:00:11.3]} 33. Qe8+
{[%clk 0:00:26.8]} 33... Kh7 {[%clk 0:00:10.5]} 34. Bxe4+ {[%clk 0:00:26.4]}
34... Qxe4 {[%clk 0:00:10.2]} 35. Nf8+ {[%clk 0:00:26.1]} 35... Kg8 {[%clk
0:00:09.7]} 36. Nd7+ {[%clk 0:00:24.9]} 36... Kh7 {[%clk 0:00:09.6]} 37. Nf8+
{[%clk 0:00:18.6]} 37... Kg8 {[%clk 0:00:09.1]} 38. Nd7+ {[%clk 0:00:19.1]}
38... Kh7 {[%clk 0:00:09.2]} 39. Nf6+ {[%clk 0:00:19.6]} 39... gxf6 {[%clk
0:00:08.5]} 40. Qxf7+ {[%clk 0:00:19.8]} 40... Kh8 {[%clk 0:00:07.2]} 41. Bxf6#
{[%clk 0:00:20.1]} 1-0

[Event "Early-Titled-Tuesday-Blitz-October-24-2023"]
[Site "Chess.com"]
[Date "2023.10.24"]
[Round "2"]
[White "masterofpuppets2"]
[Black "Resignify"]
[Result "1-0"]
[WhiteElo "2526"]
[BlackElo "2303"]
[TimeControl "180+1"]
[EndTime "8:17:04 PDT"]
[Termination "masterofpuppets2 won on time"]

1. d4 {[%clk 0:03:00.9]} 1... Nf6 {[%clk 0:02:59.4]} 2. c4 {[%clk 0:03:00.4]}
2... g6 {[%clk 0:02:59.7]} 3. f3 {[%clk 0:03:00.7]} 3... Bg7 {[%clk 0:03:00.1]}
4. e4 {[%clk 0:03:01.3]} 4... d6 {[%clk 0:02:59.7]} 5. Nc3 {[%clk 0:03:01.8]}
5... O-O {[%clk 0:02:59.8]} 6. Be3 {[%clk 0:03:02.5]} 6... e5 {[%clk 0:02:58.8]}
7. d5 {[%clk 0:03:02.2]} 7... Ne8 {[%clk 0:02:56.1]} 8. Bd3 {[%clk 0:03:01.9]}
8... f5 {[%clk 0:02:55.7]} 9. exf5 {[%clk 0:02:59.3]} 9... gxf5 {[%clk
0:02:43.4]} 10. Nge2 {[%clk 0:02:53.7]} 10... Nd7 {[%clk 0:02:33.6]} 11. f4
{[%clk 0:02:48.3]} 11... e4 {[%clk 0:02:28.8]} 12. Bc2 {[%clk 0:02:48.3]} 12...
Nef6 {[%clk 0:02:09.7]} 13. h3 {[%clk 0:02:47.5]} 13... a5 {[%clk 0:02:08.9]}
14. Qd2 {[%clk 0:02:44.4]} 14... Nc5 {[%clk 0:02:05.6]} 15. O-O {[%clk
0:02:42.7]} 15... Bd7 {[%clk 0:01:55.7]} 16. Kh2 {[%clk 0:02:42.2]} 16... Kh8
{[%clk 0:01:54.9]} 17. Rg1 {[%clk 0:02:38.5]} 17... Rg8 {[%clk 0:01:54.9]} 18.
g3 {[%clk 0:02:33.5]} 18... Qe8 {[%clk 0:01:51.5]} 19. Nd4 {[%clk 0:02:22.8]}
19... Qh5 {[%clk 0:01:49.1]} 20. Bd1 {[%clk 0:02:21.1]} 20... Qf7 {[%clk
0:01:46.9]} 21. Be2 {[%clk 0:02:17.4]} 21... Rae8 {[%clk 0:01:27.1]} 22. Rg2
{[%clk 0:02:10.3]} 22... Nd3 {[%clk 0:01:23.5]} 23. Rag1 {[%clk 0:02:07.2]}
23... h5 {[%clk 0:01:20.3]} 24. Kh1 {[%clk 0:02:05]} 24... Bh6 {[%clk
0:01:15.6]} 25. Qd1 {[%clk 0:01:55.9]} 25... Rg7 {[%clk 0:01:14.5]} 26. Kh2
{[%clk 0:01:45.8]} 26... Reg8 {[%clk 0:01:13.7]} 27. Bxd3 {[%clk 0:01:45.2]}
27... exd3 {[%clk 0:01:14.1]} 28. Qxd3 {[%clk 0:01:45.9]} 28... h4 {[%clk
0:01:06.2]} 29. Nxf5 {[%clk 0:01:36.1]} 29... hxg3+ {[%clk 0:00:52.8]} 30. Nxg3
{[%clk 0:01:24.6]} 30... Nh5 {[%clk 0:00:28.4]} 31. f5 {[%clk 0:00:50]} 31...
Bxe3 {[%clk 0:00:20.6]} 32. Qxe3 {[%clk 0:00:46.3]} 32... Nxg3 {[%clk
0:00:12.7]} 33. Rxg3 {[%clk 0:00:46.5]} 33... Rxg3 {[%clk 0:00:12.1]} 34. Rxg3
{[%clk 0:00:47.4]} 34... Rxg3 {[%clk 0:00:10.7]} 35. Qxg3 {[%clk 0:00:48.3]}
35... Qxf5 {[%clk 0:00:10]} 36. Qh4+ {[%clk 0:00:32.9]} 36... Kg7 {[%clk
0:00:04.6]} 37. Ne4 {[%clk 0:00:33.4]} 37... Qe5+ {[%clk 0:00:03.6]} 38. Qg3+
{[%clk 0:00:31.9]} 38... Kf7 {[%clk 0:00:01.9]} 39. Qxe5 {[%clk 0:00:30.7]}
39... dxe5 {[%clk 0:00:02.8]} 40. Nc5 {[%clk 0:00:28.7]} 40... Bc8 {[%clk
0:00:03.3]} 41. Kg3 {[%clk 0:00:27.2]} 41... Kf6 {[%clk 0:00:02.6]} 42. Ne4+
{[%clk 0:00:24]} 42... Kf5 {[%clk 0:00:02.7]} 43. Kf3 {[%clk 0:00:24.7]} 43...
b6 {[%clk 0:00:01.6]} 44. h4 {[%clk 0:00:22]} 1-0